Workbook

Sheet 국지도, 지방도(5)
A1: 2022년도 도로 교통량 조사 결과 집계표(지방도 및 국가지원지방도)
A2: 노선별 | C2: 2022년 교통량 조사결과 (차종별 6시간) | AC2: 24시간 총조사결과
C3: 시간 | D3: 계 | E3: 1종 (승용) | G3: 2종 (버스) | I3: 3종 (소형트럭) | K3: 4종 (소형트럭) | M3: 5종 (중형트럭) | O3: 6종 (중형트럭) | Q3: 7종 (중형트럭) | S3: 8종 (대형트럭) | U3: 9종 (대형트럭) | W3: 10종 (대형트럭) | Y3: 11종 (대형트럭) | AA3: 12종 (대형트럭) | AC3: 시간 | AD3: 2021년 | AE3: 2022년 | AF3: 증감 | AG3: 증감율
E4: 상행 | F4: 하행 | G4: 상행 | H4: 하행 | I4: 상행 | J4: 하행 | K4: 상행 | L4: 하행 | M4: 상행 | N4: 하행 | O4: 상행 | P4: 하행 | Q4: 상행 | R4: 하행 | S4: 상행 | T4: 하행 | U4: 상행 | V4: 하행 | W4: 상행 | X4: 하행 | Y4: 상행 | Z4: 하행 | AA4: 상행 | AB4: 하행
A5: 합계 (5지점) | C5: 합계 | D5: =SUM(D8,D11,D14,D17,D20) -> 23,189 | E5: 8,018 | F5: 10,688 | G5: 400 | H5: 540 | I5: 1,250 | J5: 1,573 | K5: 53 | L5: 111 | M5: 123 | N5: 143 | O5: 60 | P5: 92 | Q5: 42 | R5: 79 | S5: 1 | T5: 0 | U5: 0 | V5: 3 | W5: 0 | X5: 6 | Y5: 0 | Z5: 7 | AA5: 0 | AB5: 0 | AC5: 합계 | AD5: =SUM(AD6:AD7) -> 25,089 | AE5: =SUM(AE6:AE7) -> 23,189 | AF5: =AE5-AD5 -> -1,900 | AG5: =AF5/AD5 -> -7.57%
C6: 주간 | D6: =SUM(D9,D12,D15,D18,D21) -> 19,560 | E6: =SUM(E9,E12,E15,E18,E21) -> 6,606 | F6: 9,049 | G6: 270 | H6: 422 | I6: 1,143 | J6: 1,419 | K6: 49 | L6: 77 | M6: 119 | N6: 126 | O6: 58 | P6: 86 | Q6: 42 | R6: 77 | S6: 1 | T6: 0 | U6: 0 | V6: 3 | W6: 0 | X6: 6 | Y6: 0 | Z6: 7 | AA6: 0 | AB6: 0 | AC6: 주간 (07~19) | AD6: =SUM(AD9,AD12,AD15,AD18,AD21) -> 21,412 | AE6: =AE9+AE12+AE15+AE18+AE21 -> 19,560 | AF6: =AE6-AD6 -> -1,852
C7: 야간 | D7: =SUM(D10,D13,D16,D19,D22) -> 3,629 | E7: =SUM(E10,E13,E16,E19,E22) -> 1,412 | F7: 1,639 | G7: 130 | H7: 118 | I7: 107 | J7: 154 | K7: 4 | L7: 34 | M7: 4 | N7: 17 | O7: 2 | P7: 6 | Q7: 0 | R7: 2 | S7: 0 | T7: 0 | U7: 0 | V7: 0 | W7: 0 | X7: 0 | Y7: 0 | Z7: 0 | AA7: 0 | AB7: 0 | AC7: 야간 (19~07) | AD7: =SUM(AD10,AD13,AD16,AD19,AD22) -> 3,677 | AE7: =AE10+AE13+AE16+AE19+AE22 -> 3,629 | AF7: -48
A8: 22-01 (나진<=>여수) 콘파레펜션 앞 | C8: 소계 | D8: =SUM(E8:AB8) -> 7,758 | E8: =SUM(E9:E10) -> 2,801 | F8: =SUM(F9:F10) -> 4,017 | G8: 198 | H8: 294 | I8: 71 | J8: 99 | K8: 5 | L8: 11 | M8: 63 | N8: 68 | O8: 20 | P8: 39 | Q8: 25 | R8: 34 | S8: 0 | T8: 0 | U8: 0 | V8: 2 | W8: 0 | X8: 5 | Y8: 0 | Z8: 6 | AA8: 0 | AB8: 0 | AC8: 소계 | AD8: =SUM(AD9:AD10) -> 8,579 | AE8: =SUM(AE9:AE10) -> 7,758 | AF8: -821 | AG8: =AF8/AD8 -> -10%
C9: 07~19 | D9: =SUM(E9:AB9) -> 6,537 | E9: 2,212 | F9: 3,514 | G9: 130 | H9: 238 | I9: 71 | J9: 97 | K9: 5 | L9: 11 | M9: 62 | N9: 67 | O9: 20 | P9: 38 | Q9: 25 | R9: 34 | V9: 2 | X9: 5 | Z9: 6 | AC9: 주간 (07~19) | AD9: 7,463 | AE9: =D9 -> 6,537 | AF9: -926
C10: 19~07 | D10: =SUM(E10:AB10) -> 1,221 | E10: 589 | F10: 503 | G10: 68 | H10: 56 | J10: 2 | M10: 1 | N10: 1 | P10: 1 | AC10: 야간 (19~07) | AD10: 1,116 | AE10: =D10 -> 1,221 | AF10: 105
A11: 22-02 (소라<=>율촌) 소라면사무소 앞 | C11: 소계 | D11: =SUM(E11:AB11) -> 9,925 | E11: =SUM(E12:E13) -> 3,221 | F11: =SUM(F12:F13) -> 4,680 | G11: 92 | H11: 115 | I11: 704 | J11: 826 | K11: 38 | L11: 74 | M11: 32 | N11: 35 | O11: 25 | P11: 31 | Q11: 11 | R11: 40 | S11: 0 | T11: 0 | U11: 0 | V11: 0 | W11: 0 | X11: 1 | Y11: 0 | Z11: 0 | AA11: 0 | AB11: 0 | AC11: 소계 | AD11: =SUM(AD12:AD13) -> 8,194 | AE11: =D11 -> 9,925 | AF11: 1,731 | AG11: 21%
C12: 07~19 | D12: =SUM(E12:AB12) -> 8,505 | E12: 2,751 | F12: 3,915 | G12: 69 | H12: 90 | I12: 658 | J12: 764 | K12: 37 | L12: 60 | M12: 29 | N12: 29 | O12: 23 | P12: 30 | Q12: 11 | R12: 38 | X12: 1 | AC12: 주간 (07~19) | AD12: 6,952 | AE12: 8,505 | AF12: 1,553
C13: 19~07 | D13: 1,420 | E13: 470 | F13: 765 | G13: 23 | H13: 25 | I13: 46 | J13: 62 | K13: 1 | L13: 14 | M13: 3 | N13: 6 | O13: 2 | P13: 1 | R13: 2 | AC13: 야간 (19~07) | AD13: 1,242 | AE13: 1,420 | AF13: 178
A14: 22-03 (장수<=>여수) 안포마을회관 앞 | C14: 소계 | D14: =SUM(E14:AB14) -> 4,335 | E14: =SUM(E15:E16) -> 1,618 | F14: =SUM(F15:F16) -> 1,609 | G14: 65 | H14: 94 | I14: 335 | J14: 473 | K14: 2 | L14: 20 | M14: 28 | N14: 40 | O14: 15 | P14: 22 | Q14: 6 | R14: 5 | S14: 1 | T14: 0 | U14: 0 | V14: 1 | W14: 0 | X14: 0 | Y14: 0 | Z14: 1 | AA14: 0 | AB14: 0 | AC14: 소계 | AD14: =SUM(AD15:AD16) -> 6,902 | AE14: 4,335 | AF14: -2,567 | AG14: -37%
C15: 07~19 | D15: 3,579 | E15: 1,339 | F15: 1,323 | G15: 39 | H15: 68 | I15: 297 | J15: 408 | M15: 28 | N15: 30 | O15: 15 | P15: 18 | Q15: 6 | R15: 5 | S15: 1 | V15: 1 | Z15: 1 | AC15: 주간 (07~19) | AD15: 5,827 | AE15: 3,579 | AF15: -2,248
C16: 19~07 | D16: 756 | E16: 279 | F16: 286 | G16: 26 | H16: 26 | I16: 38 | J16: 65 | K16: 2 | L16: 20 | N16: 10 | P16: 4 | AC16: 야간 (19~07) | AD16: 1,075 | AE16: 756 | AF16: -319
A17: 863-01 (일반77<=>서촌) 이목마을승강장 | C17: 소계 | D17: 573 | E17: =SUM(E18:E19) -> 174 | F17: =SUM(F18:F19) -> 203 | G17: 16 | H17: 17 | I17: 69 | J17: 80 | K17: 8 | L17: 6 | M17: 0 | N17: 0 | O17: 0 | P17: 0 | Q17: 0 | R17: 0 | S17: 0 | T17: 0 | U17: 0 | V17: 0 | W17: 0 | X17: 0 | Y17: 0 | Z17: 0 | AA17: 0 | AB17: 0 | AC17: 소계 | AD17: =SUM(AD18:AD19) -> 634 | AE17: 573 | AF17: -61 | AG17: -10%
C18: 07~19 | D18: 454 | E18: 130 | F18: 154 | G18: 12 | H18: 10 | I18: 60 | J18: 75 | K18: 7 | L18: 6 | AC18: 주간 (07~19) | AD18: 491 | AE18: 454 | AF18: -37
C19: 19~07 | D19: 119 | E19: 44 | F19: 49 | G19: 4 | H19: 7 | I19: 9 | J19: 5 | K19: 1 | AC19: 야간 (19~07) | AD19: 143 | AE19: 119 | AF19: -24
A20: 863-04 (소라<=>서촌) 대옥마을승강장 | C20: 소계 | D20: 598 | E20: =SUM(E21:E22) -> 204 | F20: =SUM(F21:F22) -> 179 | G20: 29 | H20: 20 | I20: 71 | J20: 95 | K20: 0 | L20: 0 | M20: 0 | N20: 0 | O20: 0 | P20: 0 | Q20: 0 | R20: 0 | S20: 0 | T20: 0 | U20: 0 | V20: 0 | W20: 0 | X20: 0 | Y20: 0 | Z20: 0 | AA20: 0 | AB20: 0 | AC20: 소계 | AD20: =SUM(AD21:AD22) -> 780 | AE20: 598 | AF20: -182 | AG20: -23%
C21: 07~19 | D21: 485 | E21: 174 | F21: 143 | G21: 20 | H21: 16 | I21: 57 | J21: 75 | AC21: 주간 (07~19) | AD21: 679 | AE21: 485 | AF21: -194
C22: 19~07 | D22: 113 | E22: 30 | F22: 36 | G22: 9 | H22: 4 | I22: 14 | J22: 20 | AC22: 야간 (19~07) | AD22: 101 | AE22: 113 | AF22: 12
Z28: `

Sheet 시도집계표(18)
A1: 2022년도 도로 교통량 조사 결과 집계표(시도)
A2: 노선별 | C2: 2022년 교통량 조사결과 (차종별 6시간) | AC2: 24시간 총조사결과
C3: 시간 | D3: 계 | E3: 1종 (승용) | G3: 2종 (버스) | I3: 3종 (소형트럭) | K3: 4종 (소형트럭) | M3: 5종 (중형트럭) | O3: 6종 (중형트럭) | Q3: 7종 (중형트럭) | S3: 8종 (대형트럭) | U3: 9종 (대형트럭) | W3: 10종 (대형트럭) | Y3: 11종 (대형트럭) | AA3: 12종 (대형트럭) | AC3: 시간 | AD3: 2021년 | AE3: 2022년 | AF3: 증감 | AG3: 증감율
E4: 상행 | F4: 하행 | G4: 상행 | H4: 하행 | I4: 상행 | J4: 하행 | K4: 상행 | L4: 하행 | M4: 상행 | N4: 하행 | O4: 상행 | P4: 하행 | Q4: 상행 | R4: 하행 | S4: 상행 | T4: 하행 | U4: 상행 | V4: 하행 | W4: 상행 | X4: 하행 | Y4: 상행 | Z4: 하행 | AA4: 상행 | AB4: 하행
A5: 합 계 (18지점) | C5: 합계 | D5: =SUM(D6:D7) -> 36,746 | E5: =SUM(E6:E7) -> 12,918 | F5: =SUM(F6:F7) -> 12,340 | G5: 509 | H5: 540 | I5: 3,919 | J5: 4,324 | K5: 261 | L5: 286 | M5: 458 | N5: 314 | O5: 312 | P5: 356 | Q5: 47 | R5: 77 | S5: 4 | T5: 8 | U5: 11 | V5: 5 | W5: 16 | X5: 26 | Y5: 7 | Z5: 1 | AA5: 4 | AB5: 3 | AC5: 합계 | AD5: =SUM(AD6:AD7) -> 33,623 | AE5: =SUM(AE6:AE7) -> 36,746 | AF5: =AE5-AD5 -> 3,123 | AG5: =AF5/AD5 -> 9.29%
C6: 주간 | D6: =SUM(E6:AB6) -> 30,822 | E6: =SUM(E9,E12,E15,E18,E21,E24,E27,E30,E33,E36,E39,E42,E45,E48,E51,E54,E57,E60) -> 10,767 | F6: =SUM(F9,F12,F15,F18,F21,F24,F27,F30,F33,F36,F39,F42,F45,F48,F51,F54,F57,F60) -> 9,992 | G6: 393 | H6: 424 | I6: 3,500 | J6: 3,692 | K6: 247 | L6: 265 | M6: 427 | N6: =SUM(N9,N12,N15,N18,N21,N24,N27,N30,N33,N36,N39,N42,N45,N48,N51,N54,N57,N60) -> 294 | O6: 290 | P6: 341 | Q6: 42 | R6: 75 | S6: 4 | T6: 7 | U6: 9 | V6: 4 | W6: 14 | X6: 21 | Y6: 6 | Z6: 1 | AA6: 4 | AB6: 3 | AC6: 주간 07~19 | AD6: =SUM(AD9,AD12,AD15,AD18,AD21,AD24,AD27,AD30,AD33,AD36,AD39,AD42,AD45,AD48,AD51,AD54,AD57,AD60) -> 28,298 | AE6: =SUM(AE9,AE12,AE15,AE18,AE21,AE24,AE27,AE30,AE33,AE36,AEB39,AE42,AE45,AE48,AE51,AE54,AE57,AE60,AE39) -> 30,822 | AF6: =AE6-AD6 -> 2,524 | AG6: =AF6/AD6 -> 9%
C7: 야간 | D7: =SUM(E7:AB7) -> 5,924 | E7: =SUM(E10,E13,E16,E19,E22,E25,E28,E31,E34,E37,E40,E43,E46,E49,E52,E55,E58,E61) -> 2,151 | F7: =SUM(F10,F13,F16,F19,F22,F25,F28,F31,F34,F37,F40,F43,F46,F49,F52,F55,F58,F61) -> 2,348 | G7: 116 | H7: 116 | I7: 419 | J7: 632 | K7: 14 | L7: 21 | M7: 31 | N7: =SUM(N10,N13,N16,N19,N22,N25,N28,N31,N34,N37,N40,N43,N46,N49,N52,N55,N58,N61) -> 20 | O7: 22 | P7: 15 | Q7: 5 | R7: 2 | S7: 0 | T7: 1 | U7: 2 | V7: 1 | W7: 2 | X7: 5 | Y7: 1 | Z7: 0 | AA7: 0 | AB7: 0 | AC7: 야간 19~07 | AD7: =SUM(AD10,AD13,AD16,AD19,AD22,AD25,AD28,AD31,AD34,AD37,AD40,AD43,AD46,AD49,AD52,AD55,AD58,AD61) -> 5,325 | AE7: =SUM(AE10,AE13,AE16,AE19,AE22,AE25,AE28,AE31,AE34,AE37,AE40,AE43,AE46,AE49,AE52,AE55,AE58,AE61) -> 5,924 | AF7: 599 | AG7: =AF7/AD7 -> 11%
A8: 1호 | B8: 36-02-01 (임포-죽포) 영농조합법인 앞 | C8: 소계 | D8: =SUM(E8:AB8) -> 2,833 | E8: =SUM(E9:E10) -> 1,042 | F8: 1,078 | G8: 51 | H8: 59 | I8: 277 | J8: 282 | K8: 7 | L8: 10 | M8: 3 | N8: =SUM(N9:N10) -> 3 | O8: 5 | P8: 4 | Q8: 3 | R8: 9 | S8: 0 | T8: 0 | U8: 0 | V8: 0 | W8: 0 | X8: 0 | Y8: 0 | Z8: 0 | AA8: 0 | AB8: 0 | AC8: 소계 | AD8: =SUM(AD9:AD10) -> 2,756 | AE8: =SUM(AE9:AE10) -> 2,833 | AF8: 77 | AG8: 3%
C9: 07~19 | D9: =SUM(E9:AB9) -> 2,451 | E9: 909 | F9: 937 | G9: 43 | H9: 49 | I9: 227 | J9: 247 | K9: 5 | L9: 9 | M9: 3 | N9: 3 | O9: 5 | P9: 4 | Q9: 2 | R9: 8 | AC9: 주간 07~19 | AD9: 2,330 | AE9: =D9 -> 2,451 | AF9: 121 | AG9: 5%
C10: 19~07 | D10: =SUM(E10:AB10) -> 382 | E10: 133 | F10: 141 | G10: 8 | H10: 10 | I10: 50 | J10: 35 | K10: 2 | L10: 1 | Q10: 1 | R10: 1 | AC10: 야간 19~07 | AD10: 426 | AE10: =D10 -> 382 | AF10: -44 | AG10: -10%
A11: 2호 | B11: 36-02-02 (신기⇔대율) 부영슈퍼 앞 | C11: 소계 | D11: =SUM(E11:AB11) -> 513 | E11: =SUM(E12:E13) -> 161 | F11: =SUM(F12:F13) -> 184 | G11: 21 | H11: 26 | I11: 52 | J11: 56 | K11: 9 | L11: 4 | M11: 0 | N11: 0 | O11: 0 | P11: 0 | Q11: 0 | R11: 0 | S11: 0 | T11: 0 | U11: 0 | V11: 0 | W11: 0 | X11: 0 | Y11: 0 | Z11: 0 | AA11: 0 | AB11: 0 | AC11: 소계 | AD11: =SUM(AD12:AD13) -> 551 | AE11: 513 | AF11: -38 | AG11: -7%
C12: 07~19 | D12: =SUM(E12:AB12) -> 431 | E12: 135 | F12: 153 | G12: 15 | H12: 19 | I12: 46 | J12: 50 | K12: 9 | L12: 4 | AC12: 주간 07~19 | AD12: 491 | AE12: 431 | AF12: -60 | AG12: -12%
C13: 19~07 | D13: =SUM(E13:AB13) -> 82 | E13: 26 | F13: 31 | G13: 6 | H13: 7 | I13: 6 | J13: 6 | AC13: 야간 19~07 | AD13: 60 | AE13: 82 | AF13: 22 | AG13: 37%
A14: 4호 | B14: 36-02-03 (진두-하동) 나폴리팬션 앞 | C14: 소계 | D14: 2,793 | E14: =SUM(E15:E16) -> 1,287 | F14: =SUM(F15:F16) -> 1,010 | G14: 34 | H14: 17 | I14: 207 | J14: 186 | K14: 7 | L14: 7 | M14: 8 | N14: 7 | O14: 8 | P14: 9 | Q14: 4 | R14: 0 | S14: 0 | T14: 0 | U14: 0 | V14: 0 | W14: 0 | X14: 0 | Y14: 1 | Z14: 0 | AA14: 1 | AB14: 0 | AC14: 소계 | AD14: =SUM(AD15:AD16) -> 2,973 | AE14: 2,793 | AF14: -180 | AG14: -6%
C15: 07~19 | D15: 1,994 | E15: 951 | F15: 571 | G15: 34 | H15: 15 | I15: 207 | J15: 165 | K15: 7 | L15: 7 | M15: 8 | N15: 7 | O15: 8 | P15: 9 | Q15: 4 | AA15: 1 | AC15: 주간 07~19 | AD15: 2,100 | AE15: 1,994 | AF15: -106 | AG15: =AF15/AD15 -> -5%
C16: 19~07 | D16: 799 | E16: 336 | F16: 439 | H16: 2 | J16: 21 | Y16: 1 | AC16: 야간 19~07 | AD16: 873 | AE16: 799 | AF16: -74 | AG16: -8%
A17: 5호 | B17: 36-02-04 (송시-도실) 돌산마트 앞 | C17: 소계 | D17: 4,447 | E17: =SUM(E18:E19) -> 1,475 | F17: =SUM(F18:F19) -> 1,153 | G17: 26 | H17: 55 | I17: 459 | J17: 1,051 | K17: 3 | L17: 20 | M17: 62 | N17: 56 | O17: 3 | P17: 57 | Q17: 0 | R17: 2 | S17: 1 | T17: 3 | U17: 11 | V17: 4 | W17: 0 | X17: 5 | Y17: 0 | Z17: 1 | AA17: 0 | AB17: 0 | AC17: 소계 | AD17: =SUM(AD18:AD19) -> 3,626 | AE17: 4,447 | AF17: 821 | AG17: 23%
C18: 07~19 | D18: 3,433 | E18: 1,155 | F18: 850 | G18: 20 | H18: 49 | I18: 366 | J18: 778 | K18: 3 | L18: 20 | M18: 59 | N18: 53 | O18: 3 | P18: 53 | R18: 2 | S18: 1 | T18: 3 | U18: 9 | V18: 3 | X18: 5 | Z18: 1 | AC18: 주간 07~19 | AD18: 3,000 | AE18: 3,433 | AF18: 433 | AG18: 14%
C19: 19~07 | D19: 1,014 | E19: 320 | F19: 303 | G19: 6 | H19: 6 | I19: 93 | J19: 273 | M19: 3 | N19: 3 | P19: 4 | U19: 2 | V19: 1 | AC19: 야간 19~07 | AD19: 626 | AE19: 1,014 | AF19: 388 | AG19: 62%
A20: 7호 | B20: 36-02-05 (둔전-굴전) 해오름팬션 앞 | C20: 소계 | D20: 1,266 | E20: =SUM(E21:E22) -> 488 | F20: =SUM(F21:F22) -> 509 | G20: 20 | H20: 14 | I20: 102 | J20: 125 | K20: 0 | L20: 3 | M20: 1 | N20: 0 | O20: 2 | P20: 0 | Q20: 0 | R20: 2 | S20: 0 | T20: 0 | U20: 0 | V20: 0 | W20: 0 | X20: 0 | Y20: 0 | Z20: 0 | AA20: 0 | AB20: 0 | AC20: 소계 | AD20: =SUM(AD21:AD22) -> 1,391 | AE20: 1,266 | AF20: =AE20-AD20 -> -125 | AG20: =AF20/AD20 -> -9% | AH20: 변경
C21: 07~19 | D21: 1,060 | E21: 401 | F21: 426 | G21: 14 | H21: 9 | I21: 90 | J21: 112 | L21: 3 | M21: 1 | O21: 2 | R21: 2 | AC21: 주간 07~19 | AD21: 1,157 | AE21: 1,060 | AF21: -97 | AG21: -8%
C22: 19~07 | D22: 206 | E22: 87 | F22: 83 | G22: 6 | H22: 5 | I22: 12 | J22: 13 | AC22: 야간 19~07 | AD22: 234 | AE22: 206 | AF22: -28 | AG22: -12%
A23: 8호 | B23: 36-02-06 (풍류-내기) 유로조경 앞 | C23: 소계 | D23: 2,586 | E23: =SUM(E24:E25) -> 799 | F23: =SUM(F24:F25) -> 898 | G23: 13 | H23: 7 | I23: 378 | J23: 340 | K23: 55 | L23: 21 | M23: 12 | N23: 10 | O23: 3 | P23: 16 | Q23: 2 | R23: 32 | S23: 0 | T23: 0 | U23: 0 | V23: 0 | W23: 0 | X23: 0 | Y23: 0 | Z23: 0 | AA23: 0 | AB23: 0 | AC23: 소계 | AD23: =SUM(AD24:AD25) -> 2,632 | AE23: 2,586 | AF23: -46 | AG23: -2%
C24: 07~19 | D24: 2,324 | E24: 708 | F24: 777 | G24: 9 | H24: 6 | I24: 361 | J24: 315 | K24: 54 | L24: 20 | M24: 11 | N24: 10 | O24: 3 | P24: 16 | Q24: 2 | R24: 32 | AC24: 주간 07~19 | AD24: 2,322 | AE24: 2,324 | AF24: 2 | AG24: 0%
C25: 19~07 | D25: 262 | E25: 91 | F25: 121 | G25: 4 | H25: 1 | I25: 17 | J25: 25 | K25: 1 | L25: 1 | M25: 1 | AC25: 야간 19~07 | AD25: 310 | AE25: 262 | AF25: -48 | AG25: -15%
A26: 10호 | B26: 36-02-07 (달천-대포) 방앗간가든 앞 | C26: 소계 | D26: 1,576 | E26: =SUM(E27:E28) -> 410 | F26: =SUM(F27:F28) -> 327 | G26: 9 | H26: 10 | I26: 285 | J26: 215 | K26: 0 | L26: 26 | M26: 187 | N26: 80 | O26: 3 | P26: 17 | Q26: 0 | R26: 5 | S26: 0 | T26: 0 | U26: 0 | V26: 1 | W26: 0 | X26: 1 | Y26: 0 | Z26: 0 | AA26: 0 | AB26: 0 | AC26: 소계 | AD26: =SUM(AD27:AD28) -> 1,184 | AE26: 1,576 | AF26: 392 | AG26: 33%
C27: 07~19 | D27: 1,396 | E27: 346 | F27: 289 | G27: 8 | H27: 8 | I27: 255 | J27: 196 | L27: 24 | M27: 165 | N27: 78 | O27: 3 | P27: 17 | R27: 5 | V27: 1 | X27: 1 | AC27: 주간 07~19 | AD27: 1,050 | AE27: 1,396 | AF27: 346 | AG27: 33%
C28: 19~07 | D28: 180 | E28: 64 | F28: 38 | G28: 1 | H28: 2 | I28: 30 | J28: 19 | L28: 2 | M28: 22 | N28: 2 | AC28: 야간 19~07 | AD28: 134 | AE28: 180 | AF28: 46 | AG28: 34%
A29: 11호 | B29: 36-02-08 (덕양-연화) 가나건축자재 앞 | C29: 소계 | D29: 1,554 | E29: =SUM(E30:E31) -> 375 | F29: =SUM(F30:F31) -> 398 | G29: 16 | H29: 13 | I29: 183 | J29: 132 | K29: 4 | L29: 10 | M29: 18 | N29: 25 | O29: 192 | P29: 179 | Q29: 6 | R29: 3 | S29: 0 | T29: 0 | U29: 0 | V29: 0 | W29: 0 | X29: 0 | Y29: 0 | Z29: 0 | AA29: 0 | AB29: 0 | AC29: 소계 | AD29: =SUM(AD30:AD31) -> 1,764 | AE29: 1,554 | AF29: -210 | AG29: =AF29/AD29 -> -12%
C30: 07~19 | D30: 1,458 | E30: 342 | F30: 373 | G30: 13 | H30: 10 | I30: 178 | J30: 128 | K30: 4 | L30: 10 | M30: 17 | N30: 25 | O30: 174 | P30: 177 | Q30: 4 | R30: 3 | AC30: 주간 07~19 | AD30: 1,550 | AE30: 1,458 | AF30: -92 | AG30: =AF30/AD30 -> -6%
C31: 19~07 | D31: 96 | E31: 33 | F31: 25 | G31: 3 | H31: 3 | I31: 5 | J31: 4 | M31: 1 | O31: 18 | P31: 2 | Q31: 2 | AC31: 야간 19~07 | AD31: 214 | AE31: 96 | AF31: -118 | AG31: =AF31/AD31 -> -55%
A32: 12호 | B32: 36-02-09 (달천-신흥) 소라면 달천길 46 | C32: 소계 | D32: 572 | E32: =SUM(E33:E34) -> 224 | F32: =SUM(F33:F34) -> 188 | G32: 14 | H32: 18 | I32: 67 | J32: 56 | K32: 3 | L32: 1 | M32: 0 | N32: 0 | O32: 0 | P32: 1 | Q32: 0 | R32: 0 | S32: 0 | T32: 0 | U32: 0 | V32: 0 | W32: 0 | X32: 0 | Y32: 0 | Z32: 0 | AA32: 0 | AB32: 0 | AC32: 소계 | AD32: =SUM(AD33:AD34) -> 636 | AE32: 572 | AF32: -64 | AG32: -10%
C33: 07~19 | D33: 507 | E33: 196 | F33: 166 | G33: 11 | H33: 15 | I33: 61 | J33: 53 | K33: 3 | L33: 1 | P33: 1 | AC33: 주간 07~19 | AD33: 564 | AE33: 507 | AF33: -57 | AG33: -10%
C34: 19~07 | D34: 65 | E34: 28 | F34: 22 | G34: 3 | H34: 3 | I34: 6 | J34: 3 | AC34: 야간 19~07 | AD34: 72 | AE34: 65 | AF34: -7 | AG34: -10%
A35: 14호 | B35: 36-02-10 (신풍-애양) 구암리사무소 앞 | C35: 소계 | D35: 1,594 | E35: =SUM(E36:E37) -> 604 | F35: =SUM(F36:F37) -> 719 | G35: 36 | H35: 36 | I35: 91 | J35: 89 | K35: 4 | L35: 1 | M35: 3 | N35: 4 | O35: 0 | P35: 0 | Q35: 0 | R35: 0 | S35: 0 | T35: 0 | U35: 0 | V35: 0 | W35: 1 | X35: 1 | Y35: 0 | Z35: 0 | AA35: 2 | AB35: 3 | AC35: 소계 | AD35: =SUM(AD36:AD37) -> 1,600 | AE35: 1,594 | AF35: -6 | AG35: -0%
C36: 07~19 | D36: 1,402 | E36: 521 | F36: 644 | G36: 21 | H36: 22 | I36: 90 | J36: 85 | K36: 4 | L36: 1 | M36: 3 | N36: 4 | W36: 1 | X36: 1 | AA36: 2 | AB36: 3 | AC36: 주간 07~19 | AD36: 1,422 | AE36: 1,402 | AF36: -20 | AG36: -1%
C37: 19~07 | D37: 192 | E37: 83 | F37: 75 | G37: 15 | H37: 14 | I37: 1 | J37: 4 | AC37: 야간 19~07 | AD37: 178 | AE37: 192 | AF37: 14 | AG37: 8%
A38: 15호 | B38: 36-02-11 (조화-연화) 하나라마트 앞 | C38: 소계 | D38: 2,494 | E38: =SUM(E39:E40) -> 660 | F38: =SUM(F39:F40) -> 674 | G38: 66 | H38: 56 | I38: 396 | J38: 307 | K38: 83 | L38: 47 | M38: 45 | N38: 15 | O38: 70 | P38: 26 | Q38: 17 | R38: 17 | S38: 0 | T38: 4 | U38: 0 | V38: 0 | W38: 3 | X38: 4 | Y38: 4 | Z38: 0 | AA38: 0 | AB38: 0 | AC38: 소계 | AD38: =SUM(AD39:AD40) -> 2,256 | AE38: 2,494 | AF38: 238 | AG38: 11%
C39: 07~19 | D39: 2,238 | E39: 582 | F39: 576 | G39: 47 | H39: 42 | I39: 371 | J39: 288 | K39: 83 | L39: 47 | M39: 45 | N39: 15 | O39: 70 | P39: 25 | Q39: 17 | R39: 16 | T39: 3 | W39: 3 | X39: 4 | Y39: 4 | AC39: 주간 07~19 | AD39: 1,971 | AE39: 2,238 | AF39: 267 | AG39: 14%
C40: 19~07 | D40: 256 | E40: 78 | F40: 98 | G40: 19 | H40: 14 | I40: 25 | J40: 19 | P40: 1 | R40: 1 | T40: 1 | AC40: 야간 19~07 | AD40: 285 | AE40: 256 | AF40: -29 | AG40: -10%
A41: 16호 | B41: 36-02-12 (상봉-여흥) 월산리사무소 앞 | C41: 소계 | D41: 3,759 | E41: =SUM(E42:E43) -> 967 | F41: =SUM(F42:F43) -> 1,370 | G41: 45 | H41: 63 | I41: 365 | J41: 536 | K41: 32 | L41: 102 | M41: 80 | N41: 93 | O41: 17 | P41: 44 | Q41: 13 | R41: 3 | S41: 3 | T41: 1 | U41: 0 | V41: 0 | W41: 8 | X41: 15 | Y41: 1 | Z41: 0 | AA41: 1 | AB41: 0 | AC41: 소계 | AD41: =SUM(AD42:AD43) -> 3,988 | AE41: 3,759 | AF41: -229 | AG41: -6%
C42: 07~19 | D42: 3,213 | E42: 783 | F42: 1,166 | G42: 34 | H42: 50 | I42: 339 | J42: 475 | K42: 29 | L42: 86 | M42: 80 | N42: 82 | O42: 15 | P42: 36 | Q42: 12 | R42: 3 | S42: 3 | T42: 1 | W42: 7 | X42: 10 | Y42: 1 | AA42: 1 | AC42: 주간 07~19 | AD42: 3,478 | AE42: 3,213 | AF42: -265 | AG42: -8%
C43: 19~07 | D43: 546 | E43: 184 | F43: 204 | G43: 11 | H43: 13 | I43: 26 | J43: 61 | K43: 3 | L43: 16 | N43: 11 | O43: 2 | P43: 8 | Q43: 1 | W43: 1 | X43: 5 | AC43: 야간 19~07 | AD43: 510 | AE43: 546 | AF43: 36 | AG43: 7%
A44: 17호 | B44: 36-02-13 (나진-창무) 화양중 앞 | C44: 소계 | D44: 1,040 | E44: =SUM(E45:E46) -> 501 | F44: =SUM(F45:F46) -> 319 | G44: 17 | H44: 19 | I44: 86 | J44: 83 | K44: 2 | L44: 4 | M44: 2 | N44: 0 | O44: 1 | P44: 0 | Q44: 2 | R44: 3 | S44: 0 | T44: 0 | U44: 0 | V44: 0 | W44: 1 | X44: 0 | Y44: 0 | Z44: 0 | AA44: 0 | AB44: 0 | AC44: 소계 | AD44: =SUM(AD45:AD46) -> 908 | AE44: 1,040 | AF44: 132 | AG44: 15%
C45: 07~19 | D45: 942 | E45: 462 | F45: 284 | G45: 14 | H45: 15 | I45: 80 | J45: 76 | K45: 2 | L45: 3 | M45: 2 | Q45: 1 | R45: 3 | AC45: 주간 07~19 | AD45: 776 | AE45: 942 | AF45: 166 | AG45: 21%
C46: 19~07 | D46: 98 | E46: 39 | F46: 35 | G46: 3 | H46: 4 | I46: 6 | J46: 7 | L46: 1 | O46: 1 | Q46: 1 | W46: 1 | AC46: 야간 19~07 | AD46: 132 | AE46: 98 | AF46: -34 | AG46: -26%
A47: 18호 | B47: 36-02-14 (용주-소호) 용주마을 입구 | C47: 소계 | D47: 7,714 | E47: =SUM(E48:E49) -> 3,361 | F47: =SUM(F48:F49) -> 2,983 | G47: 109 | H47: 108 | I47: 552 | J47: 482 | K47: 33 | L47: 13 | M47: 36 | N47: 21 | O47: 8 | P47: 3 | Q47: 0 | R47: 1 | S47: 0 | T47: 0 | U47: 0 | V47: 0 | W47: 3 | X47: 0 | Y47: 1 | Z47: 0 | AA47: 0 | AB47: 0 | AC47: 소계 | AD47: =SUM(AD48:AD49) -> 5,343 | AE47: 7,714 | AF47: 2,371 | AG47: 44%
C48: 07~19 | D48: =SUM(E48:AB48) -> 6,230 | E48: 2,772 | F48: 2,317 | G48: 84 | H48: 80 | I48: 472 | J48: 402 | K48: 26 | L48: 13 | M48: 32 | N48: 17 | O48: 7 | P48: 3 | R48: 1 | W48: 3 | Y48: 1 | AC48: 주간 07~19 | AD48: 4,365 | AE48: 6,230 | AF48: 1,865 | AG48: 43%
C49: 19~07 | D49: 1,484 | E49: 589 | F49: 666 | G49: 25 | H49: 28 | I49: 80 | J49: 80 | K49: 7 | M49: 4 | N49: 4 | O49: 1 | AC49: 야간 19~07 | AD49: 978 | AE49: 1,484 | AF49: 506 | AG49: 52%
A50: 21호 | B50: 36-02-15 (세포-서촌) 산전교회 인근 | C50: 소계 | D50: 322 | E50: =SUM(E51:E52) -> 107 | F50: =SUM(F51:F52) -> 103 | G50: 11 | H50: 16 | I50: 41 | J50: 38 | K50: 4 | L50: 2 | M50: 0 | N50: 0 | O50: 0 | P50: 0 | Q50: 0 | R50: 0 | S50: 0 | T50: 0 | U50: 0 | V50: 0 | W50: 0 | X50: 0 | Y50: 0 | Z50: 0 | AA50: 0 | AB50: 0 | AC50: 소계 | AD50: =SUM(AD51:AD52) -> 331 | AE50: 322 | AF50: -9 | AG50: -3% | AH50: 신규
C51: 07~19 | D51: 280 | E51: 98 | F51: 87 | G51: 8 | H51: 13 | I51: 36 | J51: 33 | K51: 3 | L51: 2 | AC51: 주간 07~19 | AD51: 288 | AE51: 280 | AF51: -8 | AG51: -3%
C52: 19~07 | D52: 42 | E52: 9 | F52: 16 | G52: 3 | H52: 3 | I52: 5 | J52: 5 | K52: 1 | AC52: 야간 19~07 | AD52: 43 | AE52: 42 | AF52: -1 | AG52: -2%
A53: 20호 | B53: 36-02-16 (우학-송고) 우실경로당 앞 | C53: 소계 | D53: 557 | E53: =SUM(E54:E55) -> 100 | F53: =SUM(F54:F55) -> 99 | G53: 4 | H53: 4 | I53: 167 | J53: 160 | K53: 12 | L53: 11 | M53: 0 | N53: 0 | O53: 0 | P53: 0 | Q53: 0 | R53: 0 | S53: 0 | T53: 0 | U53: 0 | V53: 0 | W53: 0 | X53: 0 | Y53: 0 | Z53: 0 | AA53: 0 | AB53: 0 | AC53: 소계 | AD53: =SUM(AD54:AD55) -> 549 | AE53: 557 | AF53: 8 | AG53: 1%
C54: 07~19 | D54: 478 | E54: 85 | F54: 82 | G54: 3 | H54: 3 | I54: 149 | J54: 133 | K54: 12 | L54: 11 | AC54: 주간 07~19 | AD54: 463 | AE54: 478 | AF54: 15 | AG54: 3%
C55: 19~07 | D55: 79 | E55: 15 | F55: 17 | G55: 1 | H55: 1 | I55: 18 | J55: 27 | AC55: 야간 19~07 | AD55: 86 | AE55: 79 | AF55: -7 | AG55: -8%
A56: 6호 | B56: 36-02-17 (호령-신흥) 개도주조장 옆 | C56: 소계 | D56: 545 | E56: =SUM(E57:E58) -> 157 | F56: =SUM(F57:F58) -> 124 | G56: 8 | H56: 9 | I56: 134 | J56: 112 | K56: 0 | L56: 0 | M56: 1 | N56: 0 | O56: 0 | P56: 0 | Q56: 0 | R56: 0 | S56: 0 | T56: 0 | U56: 0 | V56: 0 | W56: 0 | X56: 0 | Y56: 0 | Z56: 0 | AA56: 0 | AB56: 0 | AC56: 소계 | AD56: =SUM(AD57:AD58) -> 570 | AE56: 545 | AF56: -25 | AG56: -4%
C57: 07~19 | D57: 467 | E57: 141 | F57: 114 | G57: 8 | H57: 9 | I57: 106 | J57: 88 | M57: 1 | AC57: 주간 07~19 | AD57: 487 | AE57: 467 | AF57: -20 | AG57: -4%
C58: 19~07 | D58: 78 | E58: 16 | F58: 10 | I58: 28 | J58: 24 | AC58: 야간 19~07 | AD58: 83 | AE58: 78 | AF58: -5 | AG58: -6%
A59: 22호 | B59: 36-02-18 (거문-죽촌) 삼호교횟집 앞 | C59: 소계 | D59: 581 | E59: =SUM(E60:E61) -> 200 | F59: =SUM(F60:F61) -> 204 | G59: 9 | H59: 10 | I59: 77 | J59: 74 | K59: 3 | L59: 4 | M59: 0 | N59: 0 | O59: 0 | P59: 0 | Q59: 0 | R59: 0 | S59: 0 | T59: 0 | U59: 0 | V59: 0 | W59: 0 | X59: 0 | Y59: 0 | Z59: 0 | AA59: 0 | AB59: 0 | AC59: 소계 | AD59: =SUM(AD60:AD61) -> 565 | AE59: 581 | AF59: 16 | AG59: 3%
C60: 07~19 | D60: 518 | E60: 180 | F60: 180 | G60: 7 | H60: 10 | I60: 66 | J60: 68 | K60: 3 | L60: 4 | AC60: 주간 07~19 | AD60: 484 | AE60: 518 | AF60: 34 | AG60: 7%
C61: 19~07 | D61: 63 | E61: 20 | F61: 24 | G61: 2 | I61: 11 | J61: 6 | AC61: 야간 19~07 | AD61: 81 | AE61: 63 | AF61: -18 | AG61: -22%
